[Event "Titled Tuesday Blitz April 19 Early 2022"]
[White "Nakamura, Hikaru"]
[Black "Fedoseev, Vladimir"]
[WhiteFideId "2016192"]
[BlackFideId "24130737"]
[WhiteElo "2850"]
[BlackElo "2726"]
[Result "1-0"]
[Round "07"]
[TimeControl "180+1"]
[Date "2022.04.19"]
[WhiteClock "0:00:14"]
[BlackClock "0:00:05"]

1. Nf3 {[%clk 0:03:00]}  d5 {[%clk 0:02:59]} 2. b3 {[%clk 0:03:00]}  c5 {[%clk 0:02:58]} 3. e3 {[%clk 0:02:58]}  a6 {[%clk 0:02:57]} 4. Bb2 {[%clk 0:02:57]}  Nc6 {[%clk 0:02:56]} 5. d4 {[%clk 0:02:57]}  cxd4 {[%clk 0:02:56]} 6. Nxd4 {[%clk 0:02:57]}  Qc7 {[%clk 0:02:50]} 7. c4 {[%clk 0:02:52]}  Nxd4 {[%clk 0:02:46]} 8. Qxd4 {[%clk 0:02:51]}  dxc4 {[%clk 0:02:36]} 9. Nc3 {[%clk 0:02:44]}  Nf6 {[%clk 0:02:34]} 10. Bxc4 {[%clk 0:02:38]}  e6 {[%clk 0:02:25]} 11. Rc1 {[%clk 0:02:35]}  Bc5 {[%clk 0:02:00]} 12. Qh4 {[%clk 0:02:34]}  O-O {[%clk 0:01:56]} 13. Bd3 {[%clk 0:02:31]}  Qd8 {[%clk 0:01:53]} 14. Ne4 {[%clk 0:01:57]}  Nxe4 {[%clk 0:01:33]} 15. Qxe4 {[%clk 0:01:41]}  f5 {[%clk 0:01:32]} 16. Qe5 {[%clk 0:01:41]}  Bb4+ {[%clk 0:01:32]} 17. Ke2 {[%clk 0:01:41]}  Rf7 {[%clk 0:01:30]} 18. Rhd1 {[%clk 0:01:40]}  Qe8 {[%clk 0:01:14]} 19. Bxf5 {[%clk 0:00:39]}  Bd7 {[%clk 0:01:05]} 20. Bd3 {[%clk 0:00:31]}  Qf8 {[%clk 0:00:59]} 21. f3 {[%clk 0:00:31]}  Bb5 {[%clk 0:00:46]} 22. a4 {[%clk 0:00:28]}  Bd6 {[%clk 0:00:41]} 23. Qd4 {[%clk 0:00:22]}  Bxd3+ {[%clk 0:00:36]} 24. Rxd3 {[%clk 0:00:22]}  Bxh2 {[%clk 0:00:34]} 25. Qe4 {[%clk 0:00:22]}  Qe7 {[%clk 0:00:31]} 26. Rh1 {[%clk 0:00:21]}  Qc7 {[%clk 0:00:30]} 27. Qxe6 {[%clk 0:00:18]}  Bg3 {[%clk 0:00:28]} 28. Rc1 {[%clk 0:00:17]}  Qe7 {[%clk 0:00:27]} 29. Qxe7 {[%clk 0:00:17]}  Rxe7 {[%clk 0:00:28]} 30. Rcd1 {[%clk 0:00:17]}  Rc8 {[%clk 0:00:27]} 31. Rd8+ {[%clk 0:00:17]}  Rxd8 {[%clk 0:00:27]} 32. Rxd8+ {[%clk 0:00:18]}  Kf7 {[%clk 0:00:27]} 33. e4 {[%clk 0:00:18]}  h5 {[%clk 0:00:27]} 34. Rd5 {[%clk 0:00:18]}  g6 {[%clk 0:00:26]} 35. Bd4 {[%clk 0:00:17]}  Rc7 {[%clk 0:00:26]} 36. Rc5 {[%clk 0:00:17]}  Rd7 {[%clk 0:00:25]} 37. Be3 {[%clk 0:00:17]}  Ke6 {[%clk 0:00:23]} 38. Rg5 {[%clk 0:00:16]}  h4 {[%clk 0:00:20]} 39. Rxg6+ {[%clk 0:00:17]}  Kf7 {[%clk 0:00:21]} 40. Rh6 {[%clk 0:00:18]}  Kg7 {[%clk 0:00:20]} 41. Rh5 {[%clk 0:00:18]}  Rc7 {[%clk 0:00:20]} 42. Rc5 {[%clk 0:00:19]}  Rd7 {[%clk 0:00:20]} 43. f4 {[%clk 0:00:19]}  Kg6 {[%clk 0:00:19]} 44. Rg5+ {[%clk 0:00:18]}  Kf6 {[%clk 0:00:19]} 45. Rd5 {[%clk 0:00:19]}  Rc7 {[%clk 0:00:19]} 46. Rd6+ {[%clk 0:00:19]}  Ke7 {[%clk 0:00:19]} 47. Rd3 {[%clk 0:00:18]}  Rc2+ {[%clk 0:00:18]} 48. Kf3 {[%clk 0:00:19]}  Rb2 {[%clk 0:00:18]} 49. Bd4 {[%clk 0:00:18]}  Rb1 {[%clk 0:00:18]} 50. Kg4 {[%clk 0:00:17]}  Re1 {[%clk 0:00:17]} 51. Kf5 {[%clk 0:00:16]}  Rf1 {[%clk 0:00:16]} 52. Bc5+ {[%clk 0:00:16]}  Ke8 {[%clk 0:00:16]} 53. Be3 {[%clk 0:00:17]}  Re1 {[%clk 0:00:15]} 54. e5 {[%clk 0:00:17]}  Re2 {[%clk 0:00:16]} 55. Ke6 {[%clk 0:00:17]}  Rxg2 {[%clk 0:00:15]} 56. f5 {[%clk 0:00:17]}  Rc2 {[%clk 0:00:11]} 57. f6 {[%clk 0:00:13]}  Rc6+ {[%clk 0:00:12]} 58. Kf5 {[%clk 0:00:14]}  h3 {[%clk 0:00:11]} 59. e6 {[%clk 0:00:14]}  Bd6 {[%clk 0:00:05]} 60. f7+ {[%clk 0:00:14]} 1-0


[Site "https://www.chess.com"]

[Event "Titled Tuesday Blitz April 19 Early 2022"]
[White "Nazari, Arad"]
[Black "Maksimenko, Viktor"]
[WhiteFideId "12577324"]
[BlackFideId "13710478"]
[WhiteElo "2129"]
[BlackElo "2269"]
[Result "1-0"]
[Round "07"]
[TimeControl "180+1"]
[Date "2022.04.19"]
[WhiteClock "0:00:53"]
[BlackClock "0:00:09"]

1. e4 {[%clk 0:03:00]}  c6 {[%clk 0:02:59]} 2. Nf3 {[%clk 0:03:00]}  d5 {[%clk 0:02:59]} 3. Nc3 {[%clk 0:03:01]}  dxe4 {[%clk 0:03:00]} 4. Nxe4 {[%clk 0:03:02]}  Nf6 {[%clk 0:03:00]} 5. Qe2 {[%clk 0:03:02]}  Nxe4 {[%clk 0:03:01]} 6. Qxe4 {[%clk 0:03:03]}  Nd7 {[%clk 0:03:02]} 7. Bc4 {[%clk 0:03:04]}  Nf6 {[%clk 0:03:01]} 8. Ne5 {[%clk 0:03:04]}  e6 {[%clk 0:03:02]} 9. Qe2 {[%clk 0:03:05]}  b5 {[%clk 0:02:55]} 10. Bd3 {[%clk 0:03:05]}  Bd6 {[%clk 0:02:55]} 11. Nxc6 {[%clk 0:03:02]}  Qc7 {[%clk 0:02:55]} 12. a4 {[%clk 0:03:03]}  b4 {[%clk 0:02:35]} 13. Nd4 {[%clk 0:03:03]}  a6 {[%clk 0:02:33]} 14. Nf5 {[%clk 0:03:03]}  Be5 {[%clk 0:02:29]} 15. Nxg7+ {[%clk 0:03:04]}  Kf8 {[%clk 0:02:29]} 16. Nh5 {[%clk 0:03:05]}  Nxh5 {[%clk 0:02:11]} 17. Qxh5 {[%clk 0:03:06]}  Bb7 {[%clk 0:02:12]} 18. Qh4 {[%clk 0:03:04]}  Rg8 {[%clk 0:01:31]} 19. Be4 {[%clk 0:02:47]}  f5 {[%clk 0:01:27]} 20. Bxb7 {[%clk 0:02:34]}  Qxb7 {[%clk 0:01:28]} 21. d3 {[%clk 0:02:35]}  Rc8 {[%clk 0:01:00]} 22. Bh6+ {[%clk 0:01:58]}  Kf7 {[%clk 0:00:59]} 23. O-O-O {[%clk 0:01:41]}  b3 {[%clk 0:00:53]} 24. c3 {[%clk 0:01:25]}  Rg4 {[%clk 0:00:45]} 25. Qh5+ {[%clk 0:01:23]}  Kg8 {[%clk 0:00:45]} 26. Rhe1 {[%clk 0:01:13]}  Bxc3 {[%clk 0:00:30]} 27. bxc3 {[%clk 0:01:14]}  Rxa4 {[%clk 0:00:19]} 28. Kb2 {[%clk 0:00:56]}  Ra2+ {[%clk 0:00:14]} 29. Kb1 {[%clk 0:00:56]}  Rxc3 {[%clk 0:00:09]} 30. Qg5+ {[%clk 0:00:54]}  Kh8 {[%clk 0:00:09]} 31. Qf6+ {[%clk 0:00:53]}  Kg8 {[%clk 0:00:09]} 32. Qf8# {[%clk 0:00:53]} 1-0


[Site "https://www.chess.com"]

[Event "Titled Tuesday Blitz April 19 Early 2022"]
[White "Niyazgulova, Marina"]
[Black "Mekhitarian, Krikor Sevag"]
[WhiteFideId "24142573"]
[BlackFideId "2107660"]
[WhiteElo "2046"]
[BlackElo "2598"]
[Result "0-1"]
[Round "07"]
[TimeControl "180+1"]
[Date "2022.04.19"]
[WhiteClock "0:00:05"]
[BlackClock "0:00:09"]

1. d4 {[%clk 0:03:00]}  Nf6 {[%clk 0:02:58]} 2. c4 {[%clk 0:02:59]}  g6 {[%clk 0:02:58]} 3. Nc3 {[%clk 0:02:58]}  d5 {[%clk 0:02:58]} 4. cxd5 {[%clk 0:02:58]}  Nxd5 {[%clk 0:02:59]} 5. e4 {[%clk 0:02:58]}  Nxc3 {[%clk 0:02:59]} 6. bxc3 {[%clk 0:02:58]}  Bg7 {[%clk 0:02:59]} 7. Bc4 {[%clk 0:02:58]}  c5 {[%clk 0:02:59]} 8. Ne2 {[%clk 0:02:58]}  Nc6 {[%clk 0:02:59]} 9. Be3 {[%clk 0:02:57]}  O-O {[%clk 0:02:57]} 10. O-O {[%clk 0:02:57]}  Bg4 {[%clk 0:02:56]} 11. f3 {[%clk 0:02:56]}  Bd7 {[%clk 0:02:56]} 12. Qd2 {[%clk 0:02:40]}  Qa5 {[%clk 0:02:55]} 13. Rfd1 {[%clk 0:02:35]}  cxd4 {[%clk 0:02:55]} 14. cxd4 {[%clk 0:02:35]}  Qxd2 {[%clk 0:02:56]} 15. Rxd2 {[%clk 0:02:35]}  Rfc8 {[%clk 0:02:57]} 16. a3 {[%clk 0:02:10]}  Na5 {[%clk 0:02:56]} 17. Ba2 {[%clk 0:02:07]}  Nc4 {[%clk 0:02:56]} 18. Bxc4 {[%clk 0:02:07]}  Rxc4 {[%clk 0:02:57]} 19. e5 {[%clk 0:01:46]}  Rac8 {[%clk 0:02:51]} 20. Raa2 {[%clk 0:01:45]}  b5 {[%clk 0:02:41]} 21. Kf2 {[%clk 0:01:40]}  a5 {[%clk 0:02:30]} 22. Nf4 {[%clk 0:01:36]}  e6 {[%clk 0:02:09]} 23. Nd3 {[%clk 0:01:34]}  Bf8 {[%clk 0:02:09]} 24. Nc5 {[%clk 0:01:15]}  Bc6 {[%clk 0:02:07]} 25. Ke2 {[%clk 0:00:57]}  Be7 {[%clk 0:02:05]} 26. Rac2 {[%clk 0:00:53]}  Rxc2 {[%clk 0:02:01]} 27. Rxc2 {[%clk 0:00:54]}  Bd5 {[%clk 0:02:02]} 28. Rb2 {[%clk 0:00:49]}  g5 {[%clk 0:01:57]} 29. Kd2 {[%clk 0:00:46]}  Bc6 {[%clk 0:01:50]} 30. Kd3 {[%clk 0:00:40]}  Kg7 {[%clk 0:01:49]} 31. Rb1 {[%clk 0:00:28]}  Kg6 {[%clk 0:01:48]} 32. Rb2 {[%clk 0:00:23]}  h5 {[%clk 0:01:47]} 33. Rb1 {[%clk 0:00:14]}  Rb8 {[%clk 0:01:37]} 34. Rb2 {[%clk 0:00:14]}  Bd5 {[%clk 0:01:36]} 35. Rb1 {[%clk 0:00:11]}  Kf5 {[%clk 0:01:33]} 36. Rb2 {[%clk 0:00:08]}  Kg6 {[%clk 0:01:25]} 37. Rb1 {[%clk 0:00:08]}  g4 {[%clk 0:01:26]} 38. fxg4 {[%clk 0:00:08]}  hxg4 {[%clk 0:01:27]} 39. g3 {[%clk 0:00:08]}  b4 {[%clk 0:01:18]} 40. axb4 {[%clk 0:00:08]}  axb4 {[%clk 0:01:19]} 41. Na6 {[%clk 0:00:08]}  Rb6 {[%clk 0:00:56]} 42. Nc5 {[%clk 0:00:08]}  b3 {[%clk 0:00:56]} 43. Rb2 {[%clk 0:00:07]}  Rb8 {[%clk 0:00:56]} 44. Kc3 {[%clk 0:00:07]}  Rc8 {[%clk 0:00:56]} 45. Kd3 {[%clk 0:00:07]}  Ra8 {[%clk 0:00:22]} 46. Nxb3 {[%clk 0:00:06]}  Ba3 {[%clk 0:00:22]} 47. Rb1 {[%clk 0:00:05]}  Kf5 {[%clk 0:00:18]} 48. Nd2 {[%clk 0:00:05]}  Be7 {[%clk 0:00:16]} 49. Rf1+ {[%clk 0:00:05]}  Kg6 {[%clk 0:00:16]} 50. Ke2 {[%clk 0:00:04]}  Ra2 {[%clk 0:00:16]} 51. Rf2 {[%clk 0:00:04]}  Bc4+ {[%clk 0:00:14]} 52. Kd1 {[%clk 0:00:04]}  Bd5 {[%clk 0:00:10]} 53. Rf4 {[%clk 0:00:04]}  Kh7 {[%clk 0:00:02]} 54. Rxg4 {[%clk 0:00:03]}  Bb4 {[%clk 0:00:01]} 55. Rf4 {[%clk 0:00:03]}  Kg6 {[%clk 0:00:02]} 56. Rg4+ {[%clk 0:00:03]}  Kh7 {[%clk 0:00:02]} 57. Rf4 {[%clk 0:00:03]}  Kg8 {[%clk 0:00:03]} 58. Rg4+ {[%clk 0:00:03]}  Kf8 {[%clk 0:00:03]} 59. Rf4 {[%clk 0:00:04]}  Ke8 {[%clk 0:00:04]} 60. Rf2 {[%clk 0:00:04]}  Ra1+ {[%clk 0:00:04]} 61. Ke2 {[%clk 0:00:03]}  Ra2 {[%clk 0:00:05]} 62. Kd1 {[%clk 0:00:03]}  Bc6 {[%clk 0:00:04]} 63. h4 {[%clk 0:00:02]}  Ba4+ {[%clk 0:00:05]} 64. Ke2 {[%clk 0:00:03]}  Bb5+ {[%clk 0:00:05]} 65. Kd1 {[%clk 0:00:03]}  Bd3 {[%clk 0:00:06]} 66. Nb3 {[%clk 0:00:02]}  Ra3 {[%clk 0:00:05]} 67. Nc1 {[%clk 0:00:02]}  Be4 {[%clk 0:00:04]} 68. Bd2 {[%clk 0:00:02]}  Bf8 {[%clk 0:00:02]} 69. Bf4 {[%clk 0:00:02]}  Ra4 {[%clk 0:00:02]} 70. Rd2 {[%clk 0:00:02]}  Bd5 {[%clk 0:00:02]} 71. Be3 {[%clk 0:00:02]}  Bb4 {[%clk 0:00:02]} 72. Rb2 {[%clk 0:00:01]}  Bc3 {[%clk 0:00:03]} 73. Rc2 {[%clk 0:00:02]}  Bxd4 {[%clk 0:00:02]} 74. Rd2 {[%clk 0:00:02]}  Bxe3 {[%clk 0:00:01]} 75. Re2 {[%clk 0:00:02]}  Bxc1 {[%clk 0:00:02]} 76. Rd2 {[%clk 0:00:03]}  Rg4 {[%clk 0:00:02]} 77. Kxc1 {[%clk 0:00:02]}  Rxg3 {[%clk 0:00:03]} 78. Rh2 {[%clk 0:00:03]}  Rg6 {[%clk 0:00:03]} 79. h5 {[%clk 0:00:03]}  Rh6 {[%clk 0:00:04]} 80. Kd2 {[%clk 0:00:04]}  f6 {[%clk 0:00:04]} 81. exf6 {[%clk 0:00:03]}  Kf7 {[%clk 0:00:05]} 82. Ke3 {[%clk 0:00:03]}  Kxf6 {[%clk 0:00:06]} 83. Kf4 {[%clk 0:00:04]}  e5+ {[%clk 0:00:07]} 84. Ke3 {[%clk 0:00:04]}  Kg5 {[%clk 0:00:06]} 85. Kd3 {[%clk 0:00:04]}  Rxh5 {[%clk 0:00:06]} 86. Re2 {[%clk 0:00:04]}  Rh3+ {[%clk 0:00:05]} 87. Kd2 {[%clk 0:00:04]}  Kf4 {[%clk 0:00:06]} 88. Rf2+ {[%clk 0:00:04]}  Bf3 {[%clk 0:00:06]} 89. Kd3 {[%clk 0:00:04]}  e4+ {[%clk 0:00:06]} 90. Kd2 {[%clk 0:00:04]}  Rh8 {[%clk 0:00:07]} 91. Ke1 {[%clk 0:00:05]}  Rd8 {[%clk 0:00:07]} 92. Ra2 {[%clk 0:00:05]}  e3 {[%clk 0:00:05]} 93. Ra4+ {[%clk 0:00:04]}  Kg3 {[%clk 0:00:06]} 94. Ra1 {[%clk 0:00:04]}  Rd1+ {[%clk 0:00:06]} 95. Rxd1 {[%clk 0:00:04]}  Bxd1 {[%clk 0:00:06]} 96. Kxd1 {[%clk 0:00:03]}  Kf2 {[%clk 0:00:07]} 97. Kc2 {[%clk 0:00:03]}  e2 {[%clk 0:00:08]} 98. Kc3 {[%clk 0:00:04]}  e1=Q+ {[%clk 0:00:09]} 99. Kc4 {[%clk 0:00:05]}  Kf3 {[%clk 0:00:09]} 0-1


[Site "https://www.chess.com"]

[Event "Titled Tuesday Blitz April 19 Early 2022"]
[White "Oganian, Miran"]
[Black "Agibileg, Uurtsaikh"]
[WhiteFideId "4122488"]
[BlackFideId "4901606"]
[WhiteElo "2357"]
[BlackElo "2205"]
[Result "1-0"]
[Round "07"]
[TimeControl "180+1"]
[Date "2022.04.19"]
[WhiteClock "0:01:10"]
[BlackClock "0:00:13"]

1. e4 {[%clk 0:02:59]}  c5 {[%clk 0:02:59]} 2. Nf3 {[%clk 0:02:59]}  e6 {[%clk 0:02:59]} 3. c3 {[%clk 0:03:00]}  Nf6 {[%clk 0:02:59]} 4. e5 {[%clk 0:03:00]}  Nd5 {[%clk 0:02:59]} 5. d4 {[%clk 0:03:01]}  cxd4 {[%clk 0:02:59]} 6. cxd4 {[%clk 0:03:02]}  d6 {[%clk 0:02:59]} 7. Bc4 {[%clk 0:03:02]}  Be7 {[%clk 0:02:58]} 8. O-O {[%clk 0:03:02]}  Nd7 {[%clk 0:02:55]} 9. Bxd5 {[%clk 0:02:54]}  exd5 {[%clk 0:02:55]} 10. exd6 {[%clk 0:02:53]}  Bxd6 {[%clk 0:02:53]} 11. Re1+ {[%clk 0:02:53]}  Kf8 {[%clk 0:02:51]} 12. Nc3 {[%clk 0:02:52]}  Nf6 {[%clk 0:02:41]} 13. Ne5 {[%clk 0:02:49]}  h6 {[%clk 0:02:30]} 14. Qf3 {[%clk 0:02:47]}  Be6 {[%clk 0:02:29]} 15. Bf4 {[%clk 0:02:47]}  Kg8 {[%clk 0:02:25]} 16. Ng6 {[%clk 0:02:35]}  Rh7 {[%clk 0:02:19]} 17. Nb5 {[%clk 0:02:35]}  Bb4 {[%clk 0:02:08]} 18. Rxe6 {[%clk 0:02:24]}  fxe6 {[%clk 0:02:06]} 19. Nc7 {[%clk 0:02:15]}  Rc8 {[%clk 0:01:59]} 20. a3 {[%clk 0:01:49]}  Bd2 {[%clk 0:01:27]} 21. Nxe6 {[%clk 0:01:44]}  Qe8 {[%clk 0:01:27]} 22. Nef8 {[%clk 0:01:41]}  Bc1 {[%clk 0:00:56]} 23. Be5 {[%clk 0:01:39]}  Ne4 {[%clk 0:00:45]} 24. h4 {[%clk 0:01:25]}  Bxb2 {[%clk 0:00:38]} 25. Rd1 {[%clk 0:01:17]}  Rc6 {[%clk 0:00:31]} 26. h5 {[%clk 0:01:16]}  Rc3 {[%clk 0:00:17]} 27. Qf5 {[%clk 0:01:15]}  Bxa3 {[%clk 0:00:13]} 28. Nxh7 {[%clk 0:01:13]}  Kxh7 {[%clk 0:00:13]} 29. Nf8+ {[%clk 0:01:09]}  Kg8 {[%clk 0:00:12]} 30. Qh7+ {[%clk 0:01:09]}  Kxf8 {[%clk 0:00:13]} 31. Qxg7# {[%clk 0:01:10]} 1-0


[Site "https://www.chess.com"]

[Event "Titled Tuesday Blitz April 19 Early 2022"]
[White "Okike, David"]
[Black "Golubeva, Oksana"]
[WhiteFideId "8500134"]
[BlackFideId "4170164"]
[WhiteElo "2232"]
[BlackElo "2162"]
[Result "1-0"]
[Round "07"]
[TimeControl "180+1"]
[Date "2022.04.19"]
[WhiteClock "0:01:25"]
[BlackClock "0:01:07"]

1. e4 {[%clk 0:03:00]}  e6 {[%clk 0:02:58]} 2. d4 {[%clk 0:03:00]}  d5 {[%clk 0:02:59]} 3. Nc3 {[%clk 0:02:59]}  Bb4 {[%clk 0:02:59]} 4. e5 {[%clk 0:02:59]}  c5 {[%clk 0:03:00]} 5. a3 {[%clk 0:02:59]}  Bxc3+ {[%clk 0:03:00]} 6. bxc3 {[%clk 0:02:59]}  Ne7 {[%clk 0:03:01]} 7. Qg4 {[%clk 0:02:59]}  cxd4 {[%clk 0:03:01]} 8. Qxg7 {[%clk 0:02:58]}  Rg8 {[%clk 0:03:01]} 9. Qxh7 {[%clk 0:02:59]}  dxc3 {[%clk 0:03:01]} 10. Ne2 {[%clk 0:02:59]}  Nbc6 {[%clk 0:03:00]} 11. f4 {[%clk 0:02:59]}  d4 {[%clk 0:03:00]} 12. Rb1 {[%clk 0:02:59]}  Qd5 {[%clk 0:02:59]} 13. h4 {[%clk 0:02:51]}  Bd7 {[%clk 0:02:59]} 14. h5 {[%clk 0:02:49]}  O-O-O {[%clk 0:02:57]} 15. Qd3 {[%clk 0:02:50]}  Rg4 {[%clk 0:02:54]} 16. Rh3 {[%clk 0:02:47]}  Nf5 {[%clk 0:02:50]} 17. Qb5 {[%clk 0:02:30]}  Qxb5 {[%clk 0:02:31]} 18. Rxb5 {[%clk 0:02:29]}  Rh8 {[%clk 0:02:27]} 19. g3 {[%clk 0:02:20]}  a6 {[%clk 0:02:22]} 20. Rb1 {[%clk 0:02:17]}  Nce7 {[%clk 0:02:17]} 21. Bg2 {[%clk 0:02:15]}  Bc6 {[%clk 0:02:15]} 22. Bxc6 {[%clk 0:02:15]}  Nxc6 {[%clk 0:02:16]} 23. Kf2 {[%clk 0:02:13]}  Nh6 {[%clk 0:01:52]} 24. Kf3 {[%clk 0:02:08]}  Rhg8 {[%clk 0:01:51]} 25. a4 {[%clk 0:02:00]}  Kc7 {[%clk 0:01:51]} 26. Ba3 {[%clk 0:01:56]}  Nf5 {[%clk 0:01:29]} 27. h6 {[%clk 0:01:48]}  R4g6 {[%clk 0:01:25]} 28. h7 {[%clk 0:01:43]}  Rh8 {[%clk 0:01:25]} 29. g4 {[%clk 0:01:43]}  Ne3 {[%clk 0:01:25]} 30. Bd6+ {[%clk 0:01:41]}  Kc8 {[%clk 0:01:24]} 31. Nxd4 {[%clk 0:01:30]}  Nxd4+ {[%clk 0:01:24]} 32. Kxe3 {[%clk 0:01:30]}  Nc6 {[%clk 0:01:13]} 33. g5 {[%clk 0:01:30]}  Rg7 {[%clk 0:01:10]} 34. Rbh1 {[%clk 0:01:29]}  Nb4 {[%clk 0:01:09]} 35. Bxb4 {[%clk 0:01:28]}  Kd7 {[%clk 0:01:07]} 36. Bxc3 {[%clk 0:01:26]}  Kc6 {[%clk 0:01:08]} 37. Bb4 {[%clk 0:01:26]}  b5 {[%clk 0:01:06]} 38. axb5+ {[%clk 0:01:25]}  axb5 {[%clk 0:01:07]} 39. Be7 {[%clk 0:01:25]}  Kd5 {[%clk 0:01:07]} 40. Bf6 {[%clk 0:01:25]} 1-0


[Site "https://www.chess.com"]

[Event "Titled Tuesday Blitz April 19 Early 2022"]
[White "Oparin, Grigoriy"]
[Black "Seo, Jung Min"]
[WhiteFideId "24125890"]
[BlackFideId "1734687"]
[WhiteElo "2665"]
[BlackElo "2401"]
[Result "1-0"]
[Round "07"]
[TimeControl "180+1"]
[Date "2022.04.19"]
[WhiteClock "0:00:06"]
[BlackClock "0:00:01"]

1. e4 {[%clk 0:02:58]}  c6 {[%clk 0:03:00]} 2. Nc3 {[%clk 0:02:57]}  d5 {[%clk 0:02:59]} 3. Nf3 {[%clk 0:02:58]}  dxe4 {[%clk 0:03:00]} 4. Nxe4 {[%clk 0:02:59]}  Nf6 {[%clk 0:03:00]} 5. Qe2 {[%clk 0:02:57]}  Nxe4 {[%clk 0:03:00]} 6. Qxe4 {[%clk 0:02:58]}  Qd5 {[%clk 0:03:01]} 7. Qf4 {[%clk 0:02:56]}  Qf5 {[%clk 0:03:00]} 8. Qg3 {[%clk 0:02:46]}  Qxc2 {[%clk 0:02:59]} 9. Be2 {[%clk 0:02:44]}  Qg6 {[%clk 0:02:58]} 10. Qc7 {[%clk 0:02:33]}  Nd7 {[%clk 0:02:56]} 11. O-O {[%clk 0:02:32]}  Qd6 {[%clk 0:02:52]} 12. Qa5 {[%clk 0:02:32]}  e6 {[%clk 0:02:47]} 13. d4 {[%clk 0:02:31]}  Be7 {[%clk 0:02:46]} 14. Re1 {[%clk 0:02:25]}  O-O {[%clk 0:02:43]} 15. Be3 {[%clk 0:02:07]}  b6 {[%clk 0:02:42]} 16. Qh5 {[%clk 0:02:00]}  a5 {[%clk 0:02:37]} 17. Rac1 {[%clk 0:01:56]}  Ba6 {[%clk 0:02:34]} 18. Bd1 {[%clk 0:01:49]}  Bd3 {[%clk 0:02:28]} 19. Ne5 {[%clk 0:01:49]}  Nxe5 {[%clk 0:02:23]} 20. dxe5 {[%clk 0:01:50]}  Qc7 {[%clk 0:02:22]} 21. Bf3 {[%clk 0:01:48]}  Bb5 {[%clk 0:02:15]} 22. Be4 {[%clk 0:01:32]}  g6 {[%clk 0:02:15]} 23. Qf3 {[%clk 0:01:29]}  Rac8 {[%clk 0:02:00]} 24. h4 {[%clk 0:01:21]}  Bxh4 {[%clk 0:01:53]} 25. Qg4 {[%clk 0:00:39]}  Be7 {[%clk 0:01:52]} 26. Bg5 {[%clk 0:00:39]}  Bxg5 {[%clk 0:01:42]} 27. Qxg5 {[%clk 0:00:40]}  c5 {[%clk 0:01:35]} 28. Rc3 {[%clk 0:00:36]}  Qd8 {[%clk 0:01:29]} 29. Qh6 {[%clk 0:00:35]}  f5 {[%clk 0:01:29]} 30. exf6 {[%clk 0:00:31]}  Qxf6 {[%clk 0:01:29]} 31. Rf3 {[%clk 0:00:31]}  Qg7 {[%clk 0:01:25]} 32. Qh3 {[%clk 0:00:31]}  Bd7 {[%clk 0:01:24]} 33. Rd3 {[%clk 0:00:25]}  Rcd8 {[%clk 0:01:20]} 34. Red1 {[%clk 0:00:24]}  Qe7 {[%clk 0:01:19]} 35. Qg3 {[%clk 0:00:18]}  Bb5 {[%clk 0:01:07]} 36. Rd6 {[%clk 0:00:16]}  Rxd6 {[%clk 0:01:04]} 37. Rxd6 {[%clk 0:00:17]}  Bc4 {[%clk 0:01:00]} 38. b3 {[%clk 0:00:13]}  Bd5 {[%clk 0:00:59]} 39. Bd3 {[%clk 0:00:07]}  Qc7 {[%clk 0:00:54]} 40. Qe5 {[%clk 0:00:05]}  Qg7 {[%clk 0:00:50]} 41. Qg3 {[%clk 0:00:04]}  Qc7 {[%clk 0:00:34]} 42. Qe5 {[%clk 0:00:04]}  Rf7 {[%clk 0:00:31]} 43. Bc4 {[%clk 0:00:03]}  Bxc4 {[%clk 0:00:27]} 44. bxc4 {[%clk 0:00:04]}  Re7 {[%clk 0:00:25]} 45. a4 {[%clk 0:00:04]}  h5 {[%clk 0:00:22]} 46. g3 {[%clk 0:00:03]}  Kh7 {[%clk 0:00:21]} 47. Kh2 {[%clk 0:00:02]}  Re8 {[%clk 0:00:19]} 48. f4 {[%clk 0:00:02]}  Rd8 {[%clk 0:00:12]} 49. Rxd8 {[%clk 0:00:01]}  Qxd8 {[%clk 0:00:12]} 50. Qxe6 {[%clk 0:00:02]}  Qc7 {[%clk 0:00:12]} 51. Qf6 {[%clk 0:00:02]}  Qb7 {[%clk 0:00:09]} 52. Qe6 {[%clk 0:00:02]}  Qc7 {[%clk 0:00:08]} 53. Qf6 {[%clk 0:00:03]}  Qd7 {[%clk 0:00:09]} 54. Qxb6 {[%clk 0:00:03]}  Qxa4 {[%clk 0:00:09]} 55. Qxc5 {[%clk 0:00:03]}  Qc2+ {[%clk 0:00:08]} 56. Kh3 {[%clk 0:00:04]}  Qf5+ {[%clk 0:00:08]} 57. Qxf5 {[%clk 0:00:04]}  gxf5 {[%clk 0:00:08]} 58. c5 {[%clk 0:00:05]}  a4 {[%clk 0:00:09]} 59. c6 {[%clk 0:00:06]}  a3 {[%clk 0:00:09]} 60. c7 {[%clk 0:00:07]}  a2 {[%clk 0:00:10]} 61. c8=Q {[%clk 0:00:08]}  a1=Q {[%clk 0:00:10]} 62. Qxf5+ {[%clk 0:00:08]}  Kg8 {[%clk 0:00:07]} 63. Qg6+ {[%clk 0:00:08]}  Kf8 {[%clk 0:00:07]} 64. Qxh5 {[%clk 0:00:08]}  Qh1+ {[%clk 0:00:07]} 65. Kg4 {[%clk 0:00:08]}  Qd1+ {[%clk 0:00:07]} 66. Kh4 {[%clk 0:00:08]}  Qh1+ {[%clk 0:00:07]} 67. Kg5 {[%clk 0:00:09]}  Qd5+ {[%clk 0:00:07]} 68. Kh6 {[%clk 0:00:07]}  Qc6+ {[%clk 0:00:05]} 69. Qg6 {[%clk 0:00:07]}  Qh1+ {[%clk 0:00:05]} 70. Kg5 {[%clk 0:00:07]}  Qf3 {[%clk 0:00:04]} 71. g4 {[%clk 0:00:07]}  Qe3 {[%clk 0:00:03]} 72. Qf5+ {[%clk 0:00:06]}  Kg8 {[%clk 0:00:04]} 73. Qd5+ {[%clk 0:00:06]}  Kf8 {[%clk 0:00:03]} 74. Qd6+ {[%clk 0:00:06]}  Kf7 {[%clk 0:00:03]} 75. Qe5 {[%clk 0:00:06]}  Qd2 {[%clk 0:00:03]} 76. Qf6+ {[%clk 0:00:05]}  Kg8 {[%clk 0:00:03]} 77. Qe6+ {[%clk 0:00:05]}  Kg7 {[%clk 0:00:03]} 78. Qg6+ {[%clk 0:00:05]}  Kf8 {[%clk 0:00:04]} 79. Qf5+ {[%clk 0:00:06]}  Kg8 {[%clk 0:00:05]} 80. Kg6 {[%clk 0:00:05]}  Qd6+ {[%clk 0:00:04]} 81. Qf6 {[%clk 0:00:05]}  Qd3+ {[%clk 0:00:04]} 82. f5 {[%clk 0:00:06]}  Qd7 {[%clk 0:00:01]} 83. Qe6+ {[%clk 0:00:06]} 1-0


[Site "https://www.chess.com"]